fUST/lending_fUST_20251128
["ID","MTS","AMOUNT","RATE_DAILY","PERIOD"]
[394999389,1764285038395,-593.4,0.00019178,2]
[394999390,1764285038408,-2230.02,0.00019178,2]
[394999391,1764285038418,-500.0,0.00019178,2]
[394999392,1764285038427,-525.19603215,0.00019178,2]
[394999393,1764285038436,-500.0,0.00019178,2]
[394999394,1764285038445,-611.31,0.00019178,2]
[394999395,1764285038454,-500.0,0.00019178,2]
[394999396,1764285038463,-778.3,0.00019178,2]
[394999397,1764285038472,-500.0,0.00019178,2]
[394999398,1764285038482,-261.52630382,0.00019178,2]
[394999399,1764285038491,-2001.82,0.00019178,2]
[394999400,1764285038501,-500.0,0.00019178,2]
[394999401,1764285038510,-500.0,0.00019178,2]
[394999402,1764285038520,-725.9,0.00019178,2]
[394999403,1764285038529,-500.0,0.00019178,2]
[394999404,1764285038538,-500.0,0.00019178,2]
[394999405,1764285038547,-529.13,0.00019178,2]
[394999406,1764285038556,-500.0,0.00019178,2]
[394999407,1764285038565,-566.55,0.00019178,2]
[394999408,1764285038575,-786.84,0.00019178,2]
[394999409,1764285038585,-856.5,0.00019178,2]
[394999410,1764285038594,-1338.94,0.00019178,2]
[394999411,1764285038603,-1248.22,0.00019178,2]
[394999412,1764285038612,-500.0,0.00019178,2]
[394999413,1764285038622,-500.0,0.00019178,2]
[394999414,1764285038631,-500.0,0.00019178,2]
[394999415,1764285038640,-848.11,0.00019178,2]
[394999416,1764285038650,-641.48,0.00019178,2]
[394999417,1764285038659,-500.0,0.00019178,2]
[394999418,1764285038668,-500.0,0.00019178,2]
[394999419,1764285038678,-500.0,0.00019178,2]
[394999420,1764285038687,-500.0,0.00019178,2]
[394999421,1764285038696,-500.0,0.00019178,2]
[394999422,1764285038705,-500.0,0.00019178,2]
[394999423,1764285038714,-500.0,0.00019178,2]
[394999424,1764285038724,-500.0,0.00019178,2]
[394999425,1764285038733,-524.5,0.00019178,2]
[394999426,1764285038742,-1084.64,0.00019178,2]
[394999427,1764285038884,-500.0,0.00019178,2]
[394999428,1764285038894,-500.0,0.00019178,2]
[394999429,1764285038904,-500.0,0.00019178,2]
[394999430,1764285038914,-705.98,0.00019178,2]
[394999431,1764285038923,-500.0,0.00019178,2]
[394999432,1764285038932,-500.0,0.00019178,2]
[394999433,1764285038941,-500.0,0.00019178,2]
[394999434,1764285038950,-520.16,0.00019178,2]
[394999435,1764285038960,-500.0,0.00019178,2]
[394999436,1764285038969,-1161.55,0.00019178,2]
[394999437,1764285038979,-1352.53,0.00019178,2]
[394999438,1764285038988,-500.0,0.00019178,2]
[394999439,1764285038997,-585.01,0.00019178,2]
[394999440,1764285039007,-624.52360587,0.00019178,2]
[394999441,1764285039016,-632.65857096,0.00019178,2]
[394999442,1764285039026,-500.0,0.00019178,2]
[394999443,1764285039035,-500.0,0.00019178,2]
[394999444,1764285039045,-1351.69,0.00019178,2]
[394999445,1764285039054,-500.0,0.00019178,2]
[394999446,1764285039064,-500.0,0.00019178,2]
[394999447,1764285039073,-500.0,0.00019178,2]
[394999448,1764285039083,-518.85364745,0.00019178,2]
[394999449,1764285039093,-1694.88,0.00019178,2]
[394999450,1764285039108,-1045.89,0.00019178,2]
[394999451,1764285039118,-500.0,0.00019178,2]
[394999452,1764285039128,-500.0,0.00019178,2]
[394999453,1764285039139,-1545.64,0.00019178,2]
[394999454,1764285039150,-968.81,0.00019178,2]
[394999455,1764285039159,-500.0,0.00019178,2]
[394999456,1764285039169,-780.41,0.00019178,2]
[394999457,1764285039179,-500.0,0.00019178,2]
[394999458,1764285039189,-1693.47,0.00019178,2]
[394999459,1764285039198,-500.0,0.00019178,2]
[394999460,1764285039208,-500.0,0.00019178,2]
[394999461,1764285039217,-509.57758827,0.00019178,2]
[394999462,1764285039227,-500.0,0.00019178,2]
[394999463,1764285039237,-1634.23,0.00019178,2]
[394999464,1764285039246,-500.0,0.00019178,2]
[394999465,1764285039255,-1076.78,0.00019178,2]
[394999466,1764285039266,-500.0,0.00019178,2]
[394999467,1764285039275,-500.0,0.00019178,2]
[394999468,1764285039284,-574.07,0.00019178,2]
[394999469,1764285039294,-500.0,0.00019178,2]
[394999470,1764285039303,-500.0,0.00019178,2]
[394999471,1764285039312,-500.0,0.00019178,2]
[394999472,1764285039322,-1498.55,0.00019178,2]
[394999473,1764285039332,-500.0,0.00019178,2]
[394999474,1764285039341,-500.0,0.00019178,2]
[394999475,1764285039351,-1123.2,0.00019178,2]
[394999476,1764285039361,-500.0,0.00019178,2]
[394999477,1764285039371,-500.0,0.00019178,2]
[394999478,1764285039381,-362.01941619,0.00019178,2]
[394999479,1764285039391,-500.0,0.00019178,2]
[394999480,1764285039400,-978.98,0.00019178,2]
[394999481,1764285039410,-500.0,0.00019178,2]
[394999482,1764285039419,-629.14,0.00019178,2]
[394999483,1764285039429,-4196.18,0.00019178,2]
[394999484,1764285039439,-500.0,0.00019178,2]
[394999486,1764285039459,-500.0,0.00019178,2]
[394999487,1764285039468,-500.0,0.00019178,2]
[394999488,1764285039478,-500.0,0.00019178,2]
[394999489,1764285039488,-500.0,0.00019178,2]
[394999490,1764285039498,-500.0,0.00019178,2]
[394999491,1764285039507,-500.0,0.00019178,2]
[394999492,1764285039517,-1475.06,0.00019178,2]
[394999493,1764285039526,-500.0,0.00019178,2]
[394999494,1764285039535,-500.0,0.00019178,2]
[394999495,1764285039545,-554.09,0.00019178,2]
[394999496,1764285039554,-500.0,0.00019178,2]
[394999497,1764285039564,-500.0,0.00019178,2]
[394999498,1764285039573,-500.0,0.00019178,2]
[394999499,1764285039583,-500.0,0.00019178,2]
[394999500,1764285039592,-2812.27,0.00019178,2]
[394999501,1764285039601,-500.0,0.00019178,2]
[394999502,1764285039611,-1113.15,0.00019178,2]
[394999503,1764285039621,-500.0,0.00019178,2]
[394999504,1764285039630,-512.78138773,0.00019178,2]
[394999505,1764285039640,-500.0,0.00019178,2]
[394999506,1764285039649,-1561.45,0.00019178,2]
[394999507,1764285039658,-1331.8,0.00019178,2]
[394999508,1764285039668,-500.0,0.00019178,2]
[394999509,1764285039677,-500.0,0.00019178,2]
[394999510,1764285039687,-500.0,0.00019178,2]
[394999511,1764285039697,-1533.1,0.00019178,2]
[394999512,1764285039706,-2612.1,0.00019178,2]
[394999513,1764285039716,-500.0,0.00019178,2]
[394999515,1764285039725,-500.0,0.00019178,2]
[394999517,1764285039734,-500.0,0.00019178,2]
[394999519,1764285039744,-500.0,0.00019178,2]
[394999521,1764285039753,-500.0,0.00019178,2]
[394999523,1764285039762,-500.0,0.00019178,2]
[394999525,1764285039772,-500.0,0.00019178,2]
[394999527,1764285039781,-500.0,0.00019178,2]
[394999529,1764285039791,-507.17100498,0.00019178,2]
[394999530,1764285039800,-500.0,0.00019178,2]
[394999533,1764285039810,-534.73,0.00019178,2]
[394999534,1764285039819,-500.0,0.00019178,2]
[394999536,1764285039828,-589.51,0.00019178,2]
[394999539,1764285039838,-820.8,0.00019178,2]
[394999540,1764285039847,-500.0,0.00019178,2]
[394999542,1764285039856,-500.0,0.00019178,2]
[394999545,1764285039866,-500.0,0.00019178,2]
[394999546,1764285039875,-500.0,0.00019178,2]
[394999548,1764285039885,-500.0,0.00019178,2]
[394999550,1764285039894,-500.0,0.00019178,2]
[394999552,1764285039903,-500.0,0.00019178,2]
[394999554,1764285039913,-500.0,0.00019178,2]
[394999556,1764285039923,-500.0,0.00019178,2]
[394999558,1764285039932,-500.0,0.00019178,2]
[394999560,1764285039941,-500.0,0.00019178,2]
[394999562,1764285039950,-500.0,0.00019178,2]
[394999564,1764285039959,-500.0,0.00019178,2]
[394999566,1764285039968,-500.0,0.00019178,2]
[394999568,1764285039978,-528.86,0.00019178,2]
[394999570,1764285039987,-500.0,0.00019178,2]
[394999572,1764285039996,-1633.33,0.00019178,2]
[394999574,1764285040006,-1750.36,0.00019178,2]
[394999576,1764285040015,-500.0,0.00019178,2]
[394999578,1764285040025,-500.0,0.00019178,2]
[394999580,1764285040034,-511.79020928,0.00019178,2]
[394999582,1764285040043,-500.0,0.00019178,2]
[394999584,1764285040052,-500.0,0.00019178,2]
[394999586,1764285040061,-500.0,0.00019178,2]
[394999588,1764285040071,-500.0,0.00019178,2]
[394999590,1764285040080,-500.0,0.00019178,2]
[394999592,1764285040090,-648.26553886,0.00019178,2]
[394999594,1764285040099,-941.84,0.00019178,2]
[394999596,1764285040108,-1595.15,0.00019178,2]
[394999598,1764285040118,-1933.78,0.00019178,2]
[394999600,1764285040132,-500.0,0.00019178,2]
[394999602,1764285040142,-500.0,0.00019178,2]
[394999604,1764285040151,-531.59,0.00019178,2]
[394999606,1764285040160,-500.0,0.00019178,2]
[394999608,1764285040169,-827.08,0.00019178,2]
[394999610,1764285040178,-500.0,0.00019178,2]
[394999612,1764285040187,-501.25357451,0.00019178,2]
[394999614,1764285040196,-508.06408941,0.00019178,2]
[394999616,1764285040205,-1628.23,0.00019178,2]
[394999618,1764285040216,-500.0,0.00019178,2]
[394999619,1764285040226,-500.0,0.00019178,2]
[394999621,1764285040235,-500.0,0.00019178,2]
[394999623,1764285040244,-645.2781437,0.00019178,2]
[394999625,1764285040253,-924.17,0.00019178,2]
[394999627,1764285040262,-665.85,0.00019178,2]
[394999629,1764285040271,-500.0,0.00019178,2]
[394999631,1764285040280,-2152.82,0.00019178,2]
[394999633,1764285040289,-934.26,0.00019178,2]
[394999635,1764285040299,-200.0943371,0.00019178,2]
[394999637,1764285040308,-500.0,0.00019178,2]
[394999639,1764285040317,-2044.59,0.00019178,2]
[394999641,1764285040327,-27773.35,0.00019178,2]
[394999643,1764285040336,-500.0,0.00019178,2]
[394999645,1764285040346,-500.0,0.00019178,2]
[394999647,1764285040356,-3388.2,0.00019178,2]
[394999649,1764285040366,-500.0,0.00019178,2]
[394999651,1764285040376,-1011.94,0.00019178,2]
[394999653,1764285040386,-630.74,0.00019178,2]
[394999655,1764285040396,-1033.7,0.00019178,2]
[394999657,1764285040406,-500.0,0.00019178,2]
[394999659,1764285040416,-546.85,0.00019178,2]
[394999661,1764285040426,-500.0,0.00019178,2]
[394999663,1764285040435,-1993.7,0.00019178,2]
[394999665,1764285040445,-680.68,0.00019178,2]
[394999667,1764285040454,-500.0,0.00019178,2]
[394999669,1764285040464,-7868.16,0.00019178,2]
[394999671,1764285040473,-500.0,0.00019178,2]
[394999673,1764285040483,-500.0,0.00019178,2]
[394999675,1764285040492,-500.0,0.00019178,2]
[394999677,1764285040501,-500.0,0.00019178,2]
[394999679,1764285040511,-500.0,0.00019178,2]
[394999681,1764285040520,-500.0,0.00019178,2]
[394999683,1764285040530,-500.0,0.00019178,2]
[394999685,1764285040539,-500.0,0.00019178,2]
[394999687,1764285040551,-500.0,0.00019178,2]
[394999689,1764285040561,-915.24,0.00019178,2]
[394999691,1764285040570,-500.0,0.00019178,2]
[394999693,1764285040580,-500.0,0.00019178,2]
[394999695,1764285040590,-2565.69,0.00019178,2]
[394999697,1764285040600,-1823.59,0.00019178,2]
[394999699,1764285040609,-612.28,0.00019178,2]
[394999701,1764285040619,-1086.72,0.00019178,2]
[394999703,1764285040629,-903.93,0.00019178,2]
[394999705,1764285040638,-500.0,0.00019178,2]
[394999707,1764285040647,-500.0,0.00019178,2]
[394999709,1764285040656,-500.0,0.00019178,2]
[394999711,1764285040666,-738.6,0.00019178,2]
[394999713,1764285040675,-500.0,0.00019178,2]
[394999715,1764285040685,-500.0,0.00019178,2]
[394999717,1764285040694,-1374.13,0.00019178,2]
[394999719,1764285040704,-500.0,0.00019178,2]
[394999721,1764285040714,-500.0,0.00019178,2]
[394999723,1764285040723,-500.0,0.00019178,2]
[394999725,1764285040733,-500.0,0.00019178,2]
[394999727,1764285040742,-500.0,0.00019178,2]
[394999729,1764285040751,-1424.71,0.00019178,2]
[394999731,1764285040760,-1111.62,0.00019178,2]
[394999733,1764285040769,-500.11839848,0.00019178,2]
[394999735,1764285040778,-1746.35,0.00019178,2]
[394999737,1764285040787,-1252.79,0.00019178,2]
[394999739,1764285040796,-500.0,0.00019178,2]
[394999741,1764285040806,-721.9,0.00019178,2]
[394999743,1764285040815,-2051.54,0.00019178,2]
[394999745,1764285040824,-500.0,0.00019178,2]
[394999747,1764285040834,-500.12450712,0.00019178,2]
[394999749,1764285040843,-500.0,0.00019178,2]
[394999751,1764285040853,-500.0,0.00019178,2]
[394999753,1764285040862,-939.41,0.00019178,2]
[394999755,1764285040872,-500.0,0.00019178,2]
[394999757,1764285040881,-500.0,0.00019178,2]
[394999759,1764285040890,-500.0,0.00019178,2]
[394999761,1764285040900,-1279.8,0.00019178,2]
[394999763,1764285040909,-500.0,0.00019178,2]
[394999765,1764285040918,-500.0,0.00019178,2]
[394999767,1764285040928,-500.0,0.00019178,2]
[394999769,1764285040937,-1047.45,0.00019178,2]
[394999770,1764285040946,-623.53,0.00019178,2]
[394999772,1764285040955,-822.9,0.00019178,2]
[394999774,1764285040964,-639.57,0.00019178,2]
[394999776,1764285040974,-1995.44,0.00019178,2]
[394999778,1764285040983,-500.0,0.00019178,2]
[394999780,1764285040992,-918.3,0.00019178,2]
[394999782,1764285041001,-500.0,0.00019178,2]
[394999783,1764285041010,-500.0,0.00019178,2]
[394999785,1764285041021,-2383.17,0.00019178,2]
[394999808,1764285041336,-500.0,0.00019178,2]
[394999809,1764285041347,-500.0,0.00019178,2]
[394999810,1764285041356,-3213.98,0.00019178,2]
[394999811,1764285041365,-1779.95,0.00019178,2]
[394999812,1764285041375,-500.0,0.00019178,2]
[394999813,1764285041385,-452.59077748,0.00019178,2]
[394999814,1764285041394,-500.0,0.00019178,2]
[394999815,1764285041403,-6427.31,0.00019178,2]
[394999816,1764285041413,-190.67677489,0.00019178,2]
[394999818,1764285041423,-500.0,0.00019178,2]
[394999820,1764285041432,-500.0,0.00019178,2]
[394999822,1764285041441,-500.0,0.00019178,2]
[394999825,1764285041451,-2436.73,0.00019178,2]
[394999827,1764285041460,-500.0,0.00019178,2]
[394999829,1764285041469,-500.0,0.00019178,2]
[394999831,1764285041478,-721.61,0.00019178,2]
[394999832,1764285041487,-5807.49,0.00019178,2]
[394999835,1764285041496,-500.0,0.00019178,2]
[394999837,1764285041506,-500.0,0.00019178,2]
[394999839,1764285041515,-500.0,0.00019178,2]
[394999840,1764285041524,-500.0,0.00019178,2]
[394999843,1764285041534,-893.28,0.00019178,2]
[394999845,1764285041543,-2272.33,0.00019178,2]
[394999846,1764285041552,-500.0,0.00019178,2]
[394999849,1764285041562,-500.0,0.00019178,2]
[394999851,1764285041571,-473.18129455,0.00019178,2]
[394999853,1764285041580,-500.0,0.00019178,2]
[394999855,1764285041589,-581.72,0.00019178,2]
[394999857,1764285041599,-3510.78,0.00019178,2]
[394999859,1764285041608,-500.0,0.00019178,2]
[394999861,1764285041617,-1410.85,0.00019178,2]
[394999863,1764285041627,-500.0,0.00019178,2]
[394999865,1764285041636,-579.65,0.00019178,2]
[394999867,1764285041645,-6447.82,0.00019178,2]
[394999869,1764285041654,-500.0,0.00019178,2]
[394999871,1764285041663,-500.0,0.00019178,2]
[394999873,1764285041672,-500.0,0.00019178,2]
[394999875,1764285041682,-1075.08,0.00019178,2]
[394999877,1764285041691,-529.89,0.00019178,2]
[394999879,1764285041700,-6177.69,0.00019178,2]
[394999881,1764285041709,-500.0,0.00019178,2]
[394999883,1764285041719,-2957.46,0.00019178,2]
[394999885,1764285041728,-500.0,0.00019178,2]
[394999887,1764285041738,-500.0,0.00019178,2]
[394999889,1764285041747,-4496.1,0.00019178,2]
[394999891,1764285041756,-500.0,0.00019178,2]
[394999893,1764285041765,-536.7,0.00019178,2]
[394999895,1764285041774,-1279.65,0.00019178,2]
[394999897,1764285041783,-2627.96,0.00019178,2]
[394999899,1764285041793,-500.0,0.00019178,2]
[394999901,1764285041802,-500.0,0.00019178,2]
[394999903,1764285041811,-500.0,0.00019178,2]
[394999905,1764285041820,-500.0,0.00019178,2]
[394999907,1764285041830,-500.0,0.00019178,2]
[394999909,1764285041839,-5971.97,0.00019178,2]
[394999911,1764285041847,-613.62,0.00019178,2]
[394999913,1764285041856,-500.0,0.00019178,2]
[394999915,1764285041865,-500.0,0.00019178,2]
[394999917,1764285041875,-500.0,0.00019178,2]
[394999919,1764285041885,-500.0,0.00019178,2]
[394999921,1764285041894,-500.48,0.00019178,2]
[394999923,1764285041904,-500.0,0.00019178,2]
[394999925,1764285041913,-2220.35,0.00019178,2]
[394999927,1764285041922,-1544.3,0.00019178,2]
[394999929,1764285041932,-2849.21,0.00019178,2]
[394999931,1764285041941,-1397.83,0.00019178,2]
[394999933,1764285041950,-500.0,0.00019178,2]
[394999935,1764285041959,-235.90977738,0.00019178,2]
[394999937,1764285041969,-4483.87,0.00019178,2]
[394999939,1764285041978,-514.22052634,0.00019178,2]
[394999941,1764285041987,-628.33,0.00019178,2]
[394999943,1764285041998,-300.65283618,0.00019178,2]
[394999945,1764285042007,-529.17,0.00019178,2]
[394999947,1764285042016,-681.41,0.00019178,2]
[394999949,1764285042025,-500.0,0.00019178,2]
[394999951,1764285042034,-500.0,0.00019178,2]
[394999953,1764285042043,-500.0,0.00019178,2]
[394999955,1764285042052,-4822.56,0.00019178,2]
[394999957,1764285042061,-500.0,0.00019178,2]
[394999959,1764285042071,-500.0,0.00019178,2]
[394999961,1764285042080,-700.24,0.00019178,2]
[394999963,1764285042089,-500.0,0.00019178,2]
[394999965,1764285042098,-500.0,0.00019178,2]
[394999967,1764285042113,-500.0,0.00019178,2]
[394999970,1764285042123,-500.0,0.00019178,2]
[394999971,1764285042132,-500.0,0.00019178,2]
[394999973,1764285042142,-500.0,0.00019178,2]
[394999975,1764285042152,-1438.46,0.00019178,2]
[394999977,1764285042161,-646.2,0.00019178,2]
[394999979,1764285042170,-500.0,0.00019178,2]
[394999981,1764285042180,-500.0,0.00019178,2]
[394999983,1764285042189,-500.0,0.00019178,2]
[394999985,1764285042199,-500.0,0.00019178,2]
[394999987,1764285042208,-500.0,0.00019178,2]
[394999989,1764285042218,-500.0,0.00019178,2]
[394999991,1764285042227,-1642.78,0.00019178,2]
[394999993,1764285042236,-1553.96,0.00019178,2]
[394999995,1764285042245,-500.89057626,0.00019178,2]
[394999997,1764285042255,-500.0,0.00019178,2]
[394999999,1764285042264,-500.0,0.00019178,2]
[395000002,1764285042274,-500.0,0.00019178,2]
[395000003,1764285042283,-992.23,0.00019178,2]
[395000006,1764285042293,-500.0,0.00019178,2]
[395000008,1764285042303,-500.0,0.00019178,2]
[395000009,1764285042313,-614.15777639,0.00019178,2]
[395000011,1764285042322,-500.0,0.00019178,2]
[395000013,1764285042331,-500.0820029,0.00019178,2]
[395000015,1764285042340,-875.48,0.00019178,2]
[395000017,1764285042349,-732.98,0.00019178,2]
[395000019,1764285042358,-500.0,0.00019178,2]
[395000021,1764285042367,-500.0,0.00019178,2]
[395000024,1764285042377,-3338.33,0.00019178,2]
[395000026,1764285042387,-1534.94,0.00019178,2]
[395000028,1764285042396,-1821.55,0.00019178,2]
[395000030,1764285042405,-500.0,0.00019178,2]
[395000032,1764285042415,-970.79,0.00019178,2]
[395000034,1764285042425,-500.0,0.00019178,2]
[395000036,1764285042435,-457.08274374,0.00019178,2]
[395000038,1764285042445,-476.36150015,0.00019178,2]
[395000040,1764285042454,-709.34,0.00019178,2]
[395000043,1764285042464,-500.0,0.00019178,2]
[395000045,1764285042473,-500.0,0.00019178,2]
[395000047,1764285042483,-500.0,0.00019178,2]
[395000048,1764285042492,-1355.8,0.00019178,2]
[395000051,1764285042502,-500.0,0.00019178,2]
[395000053,1764285042511,-2789.72,0.00019178,2]
[395000055,1764285042520,-828.5,0.00019178,2]
[395000057,1764285042529,-6432.82,0.00019178,2]
[395000059,1764285042538,-500.0,0.00019178,2]
[395000061,1764285042548,-500.0,0.00019178,2]
[395000063,1764285042557,-500.0,0.00019178,2]
[395000065,1764285042567,-500.0,0.00019178,2]
[395000067,1764285042576,-500.0,0.00019178,2]
[395000069,1764285042585,-534.70833711,0.00019178,2]
[395000071,1764285042594,-2781.57,0.00019178,2]
[395000073,1764285042604,-500.0,0.00019178,2]
[395000075,1764285042613,-897.25,0.00019178,2]
[395000077,1764285042622,-500.0,0.00019178,2]
[395000079,1764285042632,-500.0,0.00019178,2]
[395000081,1764285042641,-500.0,0.00019178,2]
[395000083,1764285042650,-4220.59,0.00019178,2]
[395000085,1764285042659,-677.01,0.00019178,2]
[395000087,1764285042669,-5123.63,0.00019178,2]
[395000089,1764285042678,-500.0,0.00019178,2]
[395000091,1764285042687,-1449.6,0.00019178,2]
[395000093,1764285042696,-500.0,0.00019178,2]
[395000095,1764285042706,-500.0,0.00019178,2]
[395000097,1764285042715,-500.0,0.00019178,2]
[395000099,1764285042725,-500.0,0.00019178,2]
[395000100,1764285042734,-500.0,0.00019178,2]
[395000101,1764285042744,-500.0,0.00019178,2]
[395000103,1764285042753,-4805.42,0.00019178,2]
[395000104,1764285042763,-1372.95,0.00019178,2]
[395000105,1764285042772,-500.0,0.00019178,2]
[395000106,1764285042781,-4953.95,0.00019178,2]
[395000107,1764285042790,-736.1,0.00019178,2]
[395000108,1764285042799,-235.71574307,0.00019178,2]
[395000109,1764285042808,-502.84965706,0.00019178,2]
[395000110,1764285042818,-903.32,0.00019178,2]
[395000111,1764285042827,-500.0,0.00019178,2]
[395000112,1764285042836,-1115.73,0.00019178,2]
[395000113,1764285042846,-500.0,0.00019178,2]
[395000114,1764285042855,-500.0,0.00019178,2]
[395000115,1764285042864,-500.0,0.00019178,2]
[395000116,1764285042874,-500.0,0.00019178,2]
[395000117,1764285042884,-500.0,0.00019178,2]
[395000118,1764285042894,-892.79,0.00019178,2]
[395000119,1764285042904,-1040.65,0.00019178,2]
[395000120,1764285042913,-1265.81,0.00019178,2]
[395000121,1764285042922,-5135.57,0.00019178,2]
[395000122,1764285042932,-500.0,0.00019178,2]
[395000123,1764285042942,-4262.47,0.00019178,2]
[395000124,1764285042952,-3233.06,0.00019178,2]
[395000125,1764285042962,-500.0,0.00019178,2]
[395000126,1764285042971,-500.0,0.00019178,2]
[395000127,1764285042980,-500.0,0.00019178,2]
[395000128,1764285042990,-1982.58,0.00019178,2]
[395000129,1764285043000,-500.75084906,0.00019178,2]
[395000130,1764285043009,-825.25,0.00019178,2]
[395000131,1764285043018,-3485.51,0.00019178,2]
[395000132,1764285043028,-962.48,0.00019178,2]
[395000133,1764285043037,-500.0,0.00019178,2]
[395000134,1764285043047,-500.0,0.00019178,2]
[395000135,1764285043056,-700.29,0.00019178,2]
[395000136,1764285043066,-500.0,0.00019178,2]
[395000137,1764285043075,-500.0,0.00019178,2]
[395000138,1764285043085,-4391.1,0.00019178,2]
[395000139,1764285043094,-500.0,0.00019178,2]
[395000140,1764285043105,-500.0,0.00019178,2]
[395000141,1764285043114,-500.0,0.00019178,2]
[395000142,1764285043124,-1532.74,0.00019178,2]
[395000143,1764285043134,-500.0,0.00019178,2]
[395000144,1764285043144,-2171.25,0.00019178,2]
[395000145,1764285043154,-5594.25,0.00019178,2]
[395000146,1764285043163,-3388.67,0.00019178,2]
[395000147,1764285043174,-513.83389319,0.00019178,2]
[395000148,1764285043185,-958.96,0.00019178,2]
[395000149,1764285043194,-500.0,0.00019178,2]
[395000150,1764285043203,-13663.73,0.00019178,2]
[395000151,1764285043212,-3657.82,0.00019178,2]
[395000152,1764285043221,-500.0,0.00019178,2]
[395000153,1764285043231,-500.0,0.00019178,2]
[395000154,1764285043240,-530.59,0.00019178,2]
[395000155,1764285043250,-500.0,0.00019178,2]
[395000156,1764285043259,-506.17169666,0.00019178,2]
[395000157,1764285043269,-500.0,0.00019178,2]
[395000159,1764285043278,-500.0,0.00019178,2]
[395000161,1764285043287,-1210.16,0.00019178,2]
[395000162,1764285043297,-500.0,0.00019178,2]
[395000163,1764285043307,-500.0,0.00019178,2]
[395000164,1764285043316,-13449.77,0.00019178,2]
[395000165,1764285043326,-500.0,0.00019178,2]
[395000166,1764285043335,-500.0,0.00019178,2]
[395000168,1764285043345,-500.0,0.00019178,2]
[395000170,1764285043355,-500.0,0.00019178,2]
[395000172,1764285043364,-500.0,0.00019178,2]
[395000173,1764285043373,-787.51,0.00019178,2]
[395000174,1764285043382,-1357.05,0.00019178,2]
[395000175,1764285043391,-500.0,0.00019178,2]
[395000176,1764285043402,-548.35,0.00019178,2]
[395000177,1764285043412,-500.0,0.00019178,2]
[395000178,1764285043421,-500.0,0.00019178,2]
[395000179,1764285043430,-500.0,0.00019178,2]
[395000180,1764285043440,-500.0,0.00019178,2]
[395000181,1764285043449,-946.37,0.00019178,2]
[395000182,1764285043458,-500.0,0.00019178,2]
[395000183,1764285043468,-1263.77,0.00019178,2]
[395000184,1764285043477,-500.0,0.00019178,2]
[395000185,1764285043488,-1966.67,0.00019178,2]
[395000186,1764285043498,-500.0,0.00019178,2]
[395000187,1764285043507,-500.0,0.00019178,2]
[395000188,1764285043517,-1115.54,0.00019178,2]
[395000189,1764285043526,-500.0,0.00019178,2]
[395000190,1764285043536,-547.74,0.00019178,2]
[395000191,1764285043546,-500.0,0.00019178,2]
[395000192,1764285043555,-500.0,0.00019178,2]
[395000193,1764285043565,-653.49,0.00019178,2]
[395000194,1764285043576,-885.49,0.00019178,2]